bitfinex/quotes_BTCUSD_20240921
["timestamp","ask_amount","ask_price","bid_price","bid_amount"]
[1726939740718,0.315603,63371.0,63366.0,0.0956]
[1726939740928,0.15781,63367.0,63366.0,0.0956]
[1726939741125,0.789052,63367.0,63366.0,0.11327031]
[1726939741298,0.473431,63367.0,63366.0,0.11327031]
[1726939741503,0.63648467,63367.0,63366.0,0.11327031]
[1726939741771,0.73648467,63367.0,63366.0,0.0956]
[1726939741976,1.05210567,63367.0,63366.0,0.0956]
[1726939742388,0.73648467,63367.0,63366.0,0.0956]
[1726939742808,1.05610567,63367.0,63366.0,0.0956]
[1726939743229,1.05210567,63367.0,63366.0,0.0956]
[1726939743658,1.06310567,63367.0,63366.0,0.0966]
[1726939743870,1.05810567,63367.0,63366.0,0.0966]
[1726939744298,1.06310567,63367.0,63366.0,0.0966]
[1726939744514,1.06393167,63367.0,63366.0,0.0966]
[1726939744730,1.06393167,63367.0,63366.0,0.0976]
[1726939744731,1.06893167,63367.0,63366.0,0.0976]
[1726939745162,1.38455267,63367.0,63366.0,0.0976]
[1726939745375,1.37855267,63367.0,63366.0,0.0966]
[1726939745587,1.06293167,63367.0,63366.0,0.0966]
[1726939745804,1.06893167,63367.0,63366.0,0.0976]
[1726939746244,1.06293167,63367.0,63366.0,0.0966]
[1726939746672,1.06893167,63367.0,63366.0,0.0976]
[1726939748379,1.06393167,63367.0,63366.0,0.0976]
[1726939749247,1.37955267,63367.0,63366.0,0.0976]
[1726939749512,1.06393167,63367.0,63366.0,0.0976]
[1726939749942,1.37955267,63367.0,63366.0,0.0976]
[1726939750398,1.06393167,63367.0,63366.0,0.0976]
[1726939751096,1.06393167,63367.0,63366.0,0.11547032]
[1726939751759,1.06393167,63367.0,63366.0,0.0976]
[1726939759099,0.27987967,63367.0,63366.0,0.09910315]
[1726939759871,0.016826,63367.0,63366.0,0.09910315]
[1726939760125,0.016826,63367.0,63366.0,0.11130683]
[1726939760360,0.016826,63367.0,63366.0,0.31977441]
[1726939760609,0.016826,63367.0,63366.0,0.3166185]
[1726939760856,0.016826,63367.0,63366.0,0.1588055]
[1726939761099,0.010826,63367.0,63366.0,0.11030683]
[1726939761637,0.010826,63367.0,63366.0,0.10715092]
[1726939762357,0.001826,63367.0,63366.0,0.11415092]
[1726939762584,0.002826,63367.0,63366.0,0.15130811]
[1726939762802,0.258636,63367.0,63366.0,0.14130811]
[1726939763014,0.574257,63367.0,63366.0,0.13980496]
[1726939763232,0.260636,63367.0,63366.0,0.1026]
[1726939763453,0.576257,63367.0,63366.0,0.10410315]
[1726939763676,0.259636,63367.0,63366.0,0.09910315]
[1726939763887,0.259636,63367.0,63366.0,0.09710315]
[1726939763888,0.258636,63367.0,63366.0,0.09710315]
[1726939764103,0.259636,63367.0,63366.0,0.10010315]
[1726939765233,0.259636,63367.0,63366.0,0.11807347]
[1726939765461,0.258636,63367.0,63366.0,0.11507347]
[1726939765699,0.574257,63367.0,63366.0,0.0996]
[1726939765904,0.574257,63367.0,63366.0,0.0976]
[1726939766115,0.574257,63367.0,63366.0,0.0956]
[1726939766328,0.574257,63367.0,63366.0,0.0976]
[1726939766556,0.258636,63367.0,63366.0,0.11347032]
[1726939766772,0.258636,63367.0,63366.0,0.11547032]
[1726939768731,0.258636,63367.0,63366.0,0.11712232]
[1726939774902,0.000826,63367.0,63366.0,0.11712232]
[1726939775374,0.000826,63367.0,63366.0,0.29099]
[1726939775613,0.000826,63367.0,63366.0,0.606616]
[1726939776061,0.000826,63367.0,63366.0,0.29099]
[1726939776291,0.000826,63367.0,63366.0,0.29414589]
[1726939779662,0.000826,63367.0,63366.0,0.13433289]
[1726939779873,0.001826,63367.0,63366.0,0.13633289]
[1726939780937,0.001826,63367.0,63366.0,0.13933289]
[1726939782224,0.001826,63367.0,63366.0,0.14083604]
[1726939783343,0.001826,63367.0,63366.0,0.29864904]
[1726939784946,0.001826,63367.0,63366.0,0.61427504]
[1726939785173,0.001826,63367.0,63366.0,0.92674515]
[1726939785417,0.001826,63367.0,63366.0,0.61111915]
[1726939787162,0.001826,63367.0,63366.0,0.29549315]
[1726939787387,0.001826,63367.0,63366.0,0.29864898]
[1726939789782,0.001826,63367.0,63366.0,0.14083598]
[1726939791301,0.001826,63367.0,63366.0,0.61427498]
[1726939791530,0.001826,63367.0,63366.0,0.29549315]
[1726939791751,0.001826,63367.0,63366.0,0.29864894]
[1726939793720,0.001826,63367.0,63366.0,0.34845353]
[1726939793915,0.001826,63367.0,63366.0,0.34529774]
[1726939796891,0.001826,63367.0,63366.0,0.66092374]
[1726939797098,0.001826,63367.0,63366.0,0.34529774]
[1726939798424,0.001826,63367.0,63366.0,0.34529475]
[1726939800533,0.001826,63367.0,63366.0,1.29217275]
[1726939801019,0.1,63377.0,63376.0,0.09270315]
[1726939801225,0.1,63377.0,63376.0,0.10197346]
[1726939801438,0.1,63377.0,63376.0,0.12112792]
[1726939801597,0.23643829,63378.0,63376.0,0.12112792]
[1726939801598,0.1,63378.0,63377.0,0.00150315]
[1726939801868,0.1,63377.0,63376.0,0.00927031]
[1726939802292,0.1,63377.0,63376.0,0.0284326]
[1726939802985,0.14728288,63381.0,63376.0,0.0284326]
[1726939803161,0.315557,63380.0,63376.0,0.01127031]
[1726939803367,0.257785,63377.0,63376.0,0.01127031]
[1726939803591,0.257785,63377.0,63376.0,0.00927031]
[1726939803801,0.257785,63377.0,63376.0,0.01127031]
[1726939804004,0.257785,63377.0,63376.0,0.00927031]
[1726939804761,0.258785,63377.0,63376.0,0.00927031]
[1726939805017,0.258785,63377.0,63376.0,0.01077346]
[1726939805603,0.157793,63374.0,63373.0,0.00150315]
[1726939805817,0.257793,63374.0,63373.0,0.0206785]
[1726939806312,0.573379,63374.0,63373.0,0.0206785]
[1726939806567,0.257793,63374.0,63373.0,0.0206785]
[1726939806827,0.257793,63374.0,63373.0,0.03186635]
[1726939807560,0.257793,63374.0,63373.0,0.03486635]
[1726939808055,0.257793,63374.0,63373.0,0.03686635]
[1726939808721,0.1,63375.0,63374.0,0.00150315]
[1726939808861,0.0186388,63376.0,63374.0,0.00150315]
[1726939809061,0.1,63378.0,63375.0,0.00150315]
[1726939809283,0.1,63378.0,63373.0,0.005]
[1726939809284,0.257783,63378.0,63377.0,0.00150315]
[1726939809481,0.1,63378.0,63377.0,0.00150315]
[1726939809930,0.1,63378.0,63373.0,0.00515562]
[1726939809931,0.20589986,63380.0,63379.0,0.09600315]
[1726939810141,0.258604,63380.0,63379.0,0.10560347]
[1726939810314,0.27746266,63380.0,63379.0,0.10560347]
[1726939810513,0.14812186,63380.0,63379.0,0.10560347]
[1726939811170,0.000826,63380.0,63379.0,0.10560347]
[1726939811824,0.004826,63380.0,63379.0,0.10560347]
[1726939812590,0.007826,63380.0,63379.0,0.10560347]
[1726939813032,0.000826,63380.0,63379.0,0.10560347]
[1726939813490,0.000826,63380.0,63379.0,0.10760347]
[1726939814558,0.000826,63380.0,63379.0,0.10860347]
[1726939815607,0.000826,63380.0,63379.0,0.12504549]
[1726939816460,0.000826,63380.0,63379.0,0.12404549]
[1726939816653,0.000826,63380.0,63379.0,0.12204549]
[1726939816888,0.000826,63380.0,63379.0,0.12404549]
[1726939817097,0.000826,63380.0,63379.0,0.12704549]
[1726939817979,0.000826,63380.0,63379.0,0.28482549]
[1726939818231,0.000826,63380.0,63379.0,0.67808649]
[1726939818405,0.000826,63380.0,63379.0,0.20474549]
[1726939818820,0.000826,63380.0,63379.0,0.20490071]
[1726939819065,0.000826,63380.0,63379.0,0.20590071]
[1726939819243,0.000826,63380.0,63379.0,0.23659538]
[1726939819447,0.000826,63380.0,63379.0,0.20290071]
[1726939819644,0.001826,63380.0,63379.0,0.20990071]
[1726939820390,0.001826,63380.0,63379.0,0.21174549]
[1726939821045,0.001826,63380.0,63379.0,0.13404549]
[1726939825107,0.000826,63380.0,63379.0,0.12704549]
[1726939825313,0.001826,63380.0,63379.0,0.13304549]
[1726939825535,0.001826,63380.0,63379.0,0.12679573]
[1726939825751,0.001826,63380.0,63379.0,0.12179573]
[1726939825912,0.001826,63380.0,63379.0,0.12479573]
[1726939826299,0.001826,63380.0,63379.0,0.12179573]
[1726939826715,0.001826,63380.0,63379.0,0.12579573]
[1726939831428,0.259604,63380.0,63379.0,0.12579573]
[1726939831659,0.57516,63380.0,63379.0,0.02729573]
[1726939831874,0.57516,63380.0,63379.0,0.01710347]
[1726939832076,0.57416,63380.0,63379.0,0.01510347]
[1726939832508,0.259604,63380.0,63379.0,0.01810347]
[1726939832714,0.259604,63380.0,63379.0,0.02829787]
[1726939832919,0.259604,63380.0,63379.0,0.03329787]
[1726939835394,0.57516,63380.0,63379.0,0.03329787]
[1726939837051,0.57516,63380.0,63379.0,0.02310347]
[1726939840256,0.890716,63380.0,63379.0,0.02310347]
[1726939840715,0.890716,63380.0,63379.0,0.01350315]
[1726939843331,0.57516,63380.0,63379.0,0.01350315]
[1726939845628,0.57516,63380.0,63379.0,0.00850315]
[1726939845848,0.57416,63380.0,63379.0,0.00150315]
[1726939846062,0.57416,63380.0,63379.0,0.01050315]
[1726939846254,0.57416,63380.0,63379.0,0.02110347]
[1726939846515,0.57416,63380.0,63379.0,0.01210347]
[1726939846725,0.57416,63380.0,63379.0,0.01610347]
[1726939848480,0.57416,63380.0,63379.0,0.01910347]
[1726939851242,0.889716,63380.0,63379.0,0.01910347]
[1726939851672,0.57416,63380.0,63379.0,0.01910347]
[1726939852115,0.258604,63380.0,63379.0,0.01910347]
[1726939852334,0.100826,63380.0,63379.0,0.01910347]
[1726939852555,0.000826,63380.0,63379.0,0.01910347]
[1726939853051,0.258604,63380.0,63379.0,0.02932064]
[1726939853896,0.100826,63380.0,63379.0,0.02932064]
[1726939854105,0.000826,63380.0,63379.0,0.28070064]
[1726939854343,0.000826,63380.0,63379.0,0.59941682]
[1726939854563,0.000826,63382.0,63381.0,0.25287815]
[1726939854783,0.000826,63382.0,63381.0,1.41366593]
[1726939855006,0.000826,63382.0,63381.0,1.41051119]
[1726939855488,0.000826,63382.0,63381.0,1.46074544]
[1726939855913,0.001826,63382.0,63381.0,1.47374544]
[1726939856131,0.000826,63382.0,63381.0,1.46074544]
[1726939856313,0.002826,63382.0,63381.0,1.48274544]
[1726939856514,0.002826,63382.0,63381.0,1.44270415]
[1726939857041,0.002826,63382.0,63381.0,1.60900415]
[1726939857467,0.001826,63382.0,63381.0,1.59900415]
[1726939857683,0.000826,63382.0,63381.0,1.58700415]
[1726939857899,0.002826,63382.0,63381.0,1.61500415]
[1726939858295,0.000826,63382.0,63381.0,1.58700415]
[1726939858514,0.000826,63382.0,63381.0,1.43470415]
[1726939858735,0.002826,63382.0,63381.0,1.44870415]
[1726939858949,0.001826,63382.0,63381.0,1.43470415]
[1726939859329,0.001826,63382.0,63381.0,1.44870415]
[1726939859549,0.002826,63382.0,63381.0,1.44870415]
[1726939859925,0.001826,63382.0,63381.0,1.43470415]
[1726939861066,0.000826,63382.0,63381.0,1.42070415]
[1726939861386,0.002826,63382.0,63381.0,1.44870415]
[1726939861683,0.001826,63382.0,63381.0,1.43470415]
[1726939861888,0.000826,63382.0,63381.0,1.42070415]
[1726939862193,0.002826,63382.0,63381.0,1.44870415]
[1726939862401,0.001826,63382.0,63381.0,1.43470415]
[1726939863297,0.002826,63382.0,63381.0,1.44870415]
[1726939863522,0.002826,63382.0,63381.0,1.44970415]
[1726939863777,0.002826,63382.0,63381.0,1.76525515]
[1726939864012,0.1,63399.0,63398.0,0.47470315]
[1726939864200,0.003336,63402.0,63398.0,0.47470315]
[1726939864201,0.003336,63402.0,63401.0,0.00150315]
[1726939864313,0.003336,63402.0,63401.0,0.15922915]
[1726939864518,0.003336,63402.0,63401.0,0.16614181]
[1726939865380,0.008336,63402.0,63401.0,0.16614181]
[1726939865623,0.008336,63402.0,63401.0,0.18401213]
[1726939866339,0.005336,63402.0,63401.0,0.18401213]
[1726939866743,0.005336,63402.0,63401.0,0.49946413]
[1726939867387,0.005336,63402.0,63401.0,0.18401213]
[1726939867793,0.003336,63402.0,63401.0,0.18501213]
[1726939868027,0.003336,63402.0,63401.0,0.18701213]
[1726939868234,0.003336,63402.0,63401.0,0.18601213]
[1726939868411,0.003336,63402.0,63401.0,0.18401213]
[1726939868613,0.004336,63402.0,63401.0,0.19201213]
[1726939869332,0.005336,63402.0,63401.0,0.20101213]
[1726939870417,0.005336,63402.0,63401.0,0.20412425]
[1726939871830,0.005336,63402.0,63401.0,0.20727831]
[1726939872131,0.005336,63402.0,63401.0,0.93398231]
[1726939872341,0.005336,63402.0,63401.0,0.93082825]
[1726939872549,0.004336,63402.0,63401.0,0.92282825]
[1726939872770,0.003336,63402.0,63401.0,0.91382825]
[1726939872985,0.004336,63402.0,63401.0,0.92382825]
[1726939873199,0.004336,63402.0,63401.0,0.60837625]
[1726939873852,0.004336,63402.0,63401.0,0.29292425]
[1726939874279,0.004336,63402.0,63401.0,0.60837625]
[1726939874705,0.005336,63402.0,63401.0,0.61937625]
[1726939876809,0.005336,63402.0,63401.0,0.30392425]
[1726939877307,0.006162,63402.0,63401.0,0.30392425]
[1726939877782,0.005162,63402.0,63401.0,0.29392425]
[1726939878015,0.006162,63402.0,63401.0,0.30192425]
[1726939878538,0.004162,63402.0,63401.0,0.28292425]
[1726939878790,0.006162,63402.0,63401.0,0.29992425]
[1726939881472,0.794779,63402.0,63401.0,0.04639825]
[1726939881702,0.794779,63402.0,63401.0,0.02852793]
[1726939881936,0.794779,63402.0,63401.0,0.01850315]
[1726939888285,0.479332,63402.0,63401.0,0.01850315]
[1726939888729,0.479332,63402.0,63401.0,0.02856859]
[1726939888955,0.479332,63402.0,63401.0,0.04751468]
[1726939889171,0.479332,63402.0,63401.0,0.02856859]
[1726939889388,0.006162,63402.0,63401.0,0.02856859]
[1726939889621,0.006162,63402.0,63401.0,0.27959459]
[1726939889855,0.006162,63402.0,63401.0,0.59504659]
[1726939893009,0.096162,63405.0,63401.0,0.59504659]
[1726939893249,0.096162,63405.0,63402.0,0.07639701]
[1726939893477,0.096162,63405.0,63404.0,0.00150315]
[1726939893922,0.096162,63405.0,63404.0,0.00840088]
[1726939894569,0.097162,63405.0,63404.0,0.00840088]
[1726939894778,0.097162,63405.0,63404.0,0.07494345]
[1726939895233,0.097162,63405.0,63404.0,0.07994345]
[1726939895480,0.002,63405.0,63404.0,0.08594345]
[1726939897710,0.159716,63405.0,63404.0,0.08594345]
[1726939897959,0.475148,63405.0,63404.0,0.08594345]
[1726939898208,0.475148,63405.0,63404.0,0.01940088]
[1726939898704,0.159716,63405.0,63404.0,0.01940088]
[1726939900426,0.159716,63405.0,63404.0,0.02254282]
[1726939900427,0.475148,63405.0,63404.0,0.02254282]
[1726939901737,0.475974,63405.0,63404.0,0.01250315]
[1726939902406,0.475974,63405.0,63404.0,0.02324867]
[1726939902673,0.475974,63405.0,63404.0,0.0301464]
[1726939902880,0.475974,63405.0,63404.0,0.03328849]
[1726939909240,0.160542,63405.0,63404.0,0.03328849]
[1726939910072,0.475974,63405.0,63404.0,0.03328849]
[1726939910924,0.160542,63405.0,63404.0,0.03328849]
[1726939913115,0.160542,63405.0,63404.0,0.0639563]
[1726939913552,0.002826,63405.0,63404.0,0.0639563]
[1726939914473,0.002826,63405.0,63404.0,0.03328849]
[1726939914697,0.002826,63405.0,63404.0,0.06396694]
[1726939914842,0.002826,63405.0,63404.0,0.06561894]
[1726939917971,0.002826,63405.0,63404.0,0.22649083]
[1726939918935,0.002826,63405.0,63404.0,0.25724996]
[1726939919871,0.002826,63405.0,63404.0,0.09953196]
[1726939920132,0.002826,63405.0,63404.0,0.09637807]
[1726939920374,0.475974,63405.0,63404.0,0.09637807]
[1726939920609,0.160542,63405.0,63404.0,0.09637807]
[1726939921348,0.002826,63405.0,63404.0,0.09637807]
[1726939922764,0.002826,63405.0,63404.0,0.06561894]
[1726939922964,0.002826,63405.0,63404.0,0.09633535]
[1726939923541,0.160542,63405.0,63404.0,0.09633535]
[1726939926181,0.475974,63405.0,63404.0,0.09633535]
[1726939926428,0.475974,63405.0,63404.0,0.09634624]
[1726939926944,0.002826,63405.0,63404.0,0.09634624]
[1726939927170,0.160542,63405.0,63404.0,0.06566779]
[1726939929816,0.160542,63405.0,63404.0,0.08486306]
[1726939931225,0.791406,63405.0,63404.0,0.08486306]
[1726939933198,0.791406,63405.0,63404.0,0.08486034]
[1726939935612,1.199738,63405.0,63404.0,0.08335719]
[1726939935871,1.61517,63405.0,63404.0,0.04189176]
[1726939936088,1.61517,63405.0,63404.0,0.012652]
[1726939936307,1.68616848,63405.0,63404.0,0.007652]
[1726939936531,1.3707409,63405.0,63404.0,0.007652]
[1726939936757,1.206838,63405.0,63404.0,0.001652]
[1726939936973,1.206838,63405.0,63404.0,0.01188271]
[1726939937188,1.207838,63405.0,63404.0,0.01188271]
[1726939937408,1.207838,63405.0,63404.0,0.02050759]
[1726939937632,0.896406,63405.0,63404.0,0.02056974]
[1726939937851,0.893406,63405.0,63404.0,0.02056974]
[1726939938743,0.573974,63405.0,63404.0,0.11957289]
[1726939938958,0.573974,63405.0,63404.0,0.13169538]
[1726939939169,0.574974,63405.0,63404.0,0.13169538]
[1726939939387,0.574974,63405.0,63404.0,0.14173916]
[1726939939614,0.889406,63405.0,63404.0,0.14173916]
[1726939939832,0.889406,63405.0,63404.0,0.14473916]
[1726939940049,0.573974,63405.0,63404.0,0.13269538]
[1726939940276,0.573974,63405.0,63404.0,0.13169538]
[1726939940482,0.574974,63405.0,63404.0,0.13769538]
[1726939940729,0.573974,63405.0,63404.0,0.13669538]
[1726939941032,0.573974,63405.0,63404.0,0.14169538]
[1726939941482,0.000826,63405.0,63404.0,0.14169538]
[1726939941705,0.000826,63405.0,63404.0,0.17515605]
[1726939941929,0.000826,63405.0,63404.0,0.18519983]
[1726939942194,0.000826,63405.0,63404.0,0.34291783]
[1726939942476,0.000826,63405.0,63404.0,0.3347639]
[1726939942693,0.001826,63405.0,63404.0,0.1830459]
[1726939943156,0.001826,63405.0,63404.0,0.18619992]
[1726939943609,0.001826,63405.0,63404.0,0.13697544]
[1726939943828,0.001826,63405.0,63404.0,0.18646356]
[1726939944285,0.001826,63405.0,63404.0,0.34418156]
[1726939944548,0.001826,63405.0,63404.0,0.34102754]
[1726939944814,0.001826,63405.0,63404.0,0.18330954]
[1726939945052,0.001826,63405.0,63404.0,0.18646348]
[1726939946676,0.001826,63405.0,63404.0,0.34418148]
[1726939946901,0.001826,63405.0,63404.0,0.18330954]
[1726939947116,0.001826,63405.0,63404.0,0.18646348]
[1726939947542,0.001826,63405.0,63404.0,0.34418148]
[1726939947783,0.001826,63405.0,63404.0,0.34102754]
[1726939948415,0.001826,63405.0,63404.0,0.18330954]
[1726939948891,0.001826,63405.0,63404.0,0.18646354]
[1726939949101,0.001826,63405.0,63404.0,0.34418154]
[1726939949319,0.001826,63405.0,63404.0,0.34102754]
[1726939951052,0.001826,63405.0,63404.0,0.18330954]
[1726939951455,0.001826,63405.0,63404.0,0.18646354]
[1726939952353,0.001826,63405.0,63404.0,0.34418154]
[1726939952571,0.001826,63405.0,63404.0,0.18330954]
[1726939952784,0.001826,63405.0,63404.0,0.18329173]
[1726939952996,0.001826,63405.0,63404.0,0.18644572]
[1726939953435,0.02063053,63405.0,63404.0,0.08579173]
[1726939953680,0.02063053,63405.0,63404.0,0.03632142]
[1726939953681,0.001826,63405.0,63404.0,0.03632142]
[1726939953911,0.001826,63405.0,63404.0,0.08563346]
[1726939955188,0.101826,63405.0,63404.0,0.08563346]
[1726939957843,0.259542,63405.0,63404.0,0.08563346]
[1726939958057,0.101826,63405.0,63404.0,0.05528759]
[1726939958279,0.001826,63405.0,63404.0,0.05528759]
[1726939958487,0.101826,63405.0,63404.0,0.05528759]
[1726939960374,0.101826,63405.0,63404.0,0.03632142]
[1726939960590,0.101826,63405.0,63404.0,0.05528367]
[1726939962093,0.574974,63405.0,63404.0,0.05528367]
[1726939962521,0.574974,63405.0,63404.0,0.04523989]
[1726939962727,0.574974,63405.0,63404.0,0.05528237]
[1726939962945,0.574974,63405.0,63404.0,0.04523989]
[1726939963159,0.259542,63405.0,63404.0,0.05528237]
[1726939964331,0.259542,63405.0,63404.0,0.05522977]
[1726939964554,0.101826,63405.0,63404.0,0.05522977]
[1726939965819,0.159542,63405.0,63404.0,0.05522977]
[1726939966026,0.259542,63405.0,63404.0,0.05522977]
[1726939966669,0.101826,63405.0,63404.0,0.05522977]
[1726939966880,0.259542,63405.0,63404.0,0.05522977]
[1726939967319,0.259542,63405.0,63404.0,0.04518729]
[1726939968172,0.259542,63405.0,63404.0,0.05528877]
[1726939968999,0.001826,63405.0,63404.0,0.05528877]
[1726939969423,0.001826,63405.0,63404.0,0.04518729]
[1726939969986,0.001826,63405.0,63404.0,0.05528877]
[1726939970868,0.001826,63405.0,63404.0,0.05534047]
[1726939976746,0.159542,63405.0,63404.0,0.05534047]
[1726939976969,0.890406,63405.0,63404.0,0.05534047]
[1726939977184,0.890406,63405.0,63404.0,0.03637912]
[1726939977813,0.890406,63405.0,63404.0,0.05533318]
[1726939980146,0.259542,63405.0,63404.0,0.05533318]
[1726939980326,0.574974,63405.0,63404.0,0.05533318]
[1726939980969,0.259542,63405.0,63404.0,0.05533318]
[1726939981176,0.574974,63405.0,63404.0,0.05533318]
[1726939984081,0.574974,63405.0,63404.0,0.05543854]
[1726939985167,0.574974,63405.0,63404.0,0.04533706]
[1726939985787,0.574974,63405.0,63404.0,0.06136429]
[1726939987504,0.574974,63405.0,63404.0,0.04230487]
[1726939987959,0.574974,63405.0,63404.0,0.06130703]
[1726939989757,0.574974,63405.0,63404.0,0.04230487]
[1726939989966,0.574974,63405.0,63404.0,0.06133896]
[1726939991510,0.259542,63405.0,63404.0,0.06133896]
[1726939994853,0.259542,63405.0,63404.0,0.04230487]
[1726939995075,0.259542,63405.0,63404.0,0.0613182]
[1726939995750,0.574974,63405.0,63404.0,0.0613182]
[1726939998190,0.574974,63405.0,63404.0,0.04230487]
[1726939998414,0.574974,63405.0,63404.0,0.06130716]
[1726939999364,0.890406,63405.0,63404.0,0.05980401]
[1726939999792,0.574974,63405.0,63404.0,0.04377678]
[1726940000005,0.574974,63405.0,63404.0,0.0545238]
[1726940002000,0.574974,63405.0,63404.0,0.06142153]
[1726940003130,0.001826,63405.0,63404.0,0.04241924]
[1726940003348,0.001826,63405.0,63404.0,0.06461765]
[1726940003630,0.001826,63405.0,63404.0,0.0614636]
[1726940004273,0.001826,63405.0,63404.0,0.0564636]
[1726940004745,0.001826,63405.0,63404.0,0.0604636]
[1726940004980,0.001826,63405.0,63404.0,0.04141924]
[1726940005201,0.000826,63405.0,63404.0,0.05047868]
[1726940005431,0.000826,63405.0,63404.0,0.31389668]
[1726940005649,0.23741446,63417.0,63416.0,0.25489115]
[1726940005905,0.23741446,63417.0,63416.0,0.27395059]
[1726940006123,0.000827,63417.0,63416.0,0.29312959]
[1726940006338,0.000827,63417.0,63416.0,0.5503539]
[1726940006556,0.000826,63431.0,63416.0,0.5503539]
[1726940006557,0.45223076,63433.0,63432.0,0.25485215]
[1726940006806,0.23658746,63434.0,63433.0,0.15914915]
[1726940007033,0.23658746,63434.0,63433.0,0.17820859]
[1726940007299,0.16135,63440.0,63437.0,0.00150315]
[1726940007558,0.16135,63440.0,63437.0,0.01312941]
[1726940007781,0.15846,63438.0,63437.0,0.03235008]
[1726940008005,0.573728,63438.0,63437.0,0.01312941]
[1726940008217,0.25846,63438.0,63437.0,0.01312941]
[1726940008434,0.25846,63438.0,63437.0,0.01412941]
[1726940008880,0.25846,63438.0,63437.0,0.01612941]
[1726940009117,0.25846,63438.0,63437.0,0.01512941]
[1726940009361,0.25846,63438.0,63437.0,0.01712941]
[1726940009626,0.25846,63438.0,63437.0,0.01512941]
[1726940010068,0.573728,63438.0,63437.0,0.01462626]
[1726940010338,0.573728,63438.0,63437.0,0.00973364]
[1726940010574,0.888996,63438.0,63437.0,0.002]
[1726940010779,0.888996,63438.0,63437.0,0.003]
[1726940011221,0.472909,63437.0,63436.0,0.00150315]
[1726940011650,0.788182,63437.0,63436.0,0.00150315]
[1726940012288,0.472909,63437.0,63436.0,0.00150315]
[1726940013383,0.788182,63437.0,63436.0,0.00150315]
[1726940014689,0.789182,63437.0,63436.0,0.00150315]
[1726940015152,0.788182,63437.0,63436.0,0.00150315]
[1726940015397,0.789182,63437.0,63436.0,0.00150315]
[1726940015846,0.788182,63437.0,63436.0,0.00150315]
[1726940016331,0.789182,63437.0,63436.0,0.00150315]
[1726940017023,0.788195,63436.0,63435.0,0.00150315]
[1726940017314,0.315283,63435.0,63427.0,0.23658746]
[1726940017539,0.472954,63431.0,63430.0,0.00150315]
[1726940017764,0.788257,63431.0,63430.0,0.00150315]
[1726940017984,0.157668,63425.0,63421.0,0.94588736]
[1726940018439,0.157668,63425.0,63416.0,0.17045487]
[1726940018440,0.788334,63425.0,63424.0,0.00150315]
[1726940018669,0.157668,63425.0,63424.0,0.00150315]
[1726940018912,0.157668,63425.0,63424.0,0.01838445]
[1726940019113,0.157668,63425.0,63424.0,0.02801204]
[1726940019343,0.157668,63425.0,63424.0,0.01838445]
[1726940020724,0.157668,63425.0,63424.0,0.02801062]
[1726940021226,0.1,63431.0,63430.0,0.00150315]
[1726940021744,0.1,63431.0,63430.0,0.01938655]
[1726940022001,0.1,63431.0,63430.0,0.18663845]
[1726940022213,0.257637,63437.0,63436.0,0.00150315]
[1726940022673,0.1,63437.0,63436.0,0.00150315]
[1726940023145,0.1,63437.0,63436.0,0.02515767]
[1726940023345,0.257636,63437.0,63436.0,0.0347196]
[1726940023554,0.257636,63437.0,63436.0,0.00150315]
[1726940023993,0.572909,63437.0,63436.0,0.00150315]
[1726940024617,0.573909,63437.0,63436.0,0.00350315]
[1726940024830,0.573909,63437.0,63436.0,0.01303879]
[1726940025124,0.573909,63437.0,63436.0,0.00250315]
[1726940025541,0.572909,63437.0,63436.0,0.03479401]
[1726940025764,0.572909,63437.0,63436.0,0.01103879]
[1726940025980,0.573909,63437.0,63436.0,0.01103879]
[1726940026402,0.889182,63437.0,63436.0,0.01103879]
[1726940026866,0.573909,63437.0,63436.0,0.00150315]
[1726940027342,0.572909,63437.0,63436.0,0.00150315]
[1726940027601,0.573909,63437.0,63436.0,0.01103879]
[1726940027828,0.573909,63437.0,63436.0,0.00150315]
[1726940028031,0.572909,63437.0,63436.0,0.01103879]
[1726940028241,0.573909,63437.0,63436.0,0.00150315]
[1726940028449,0.573909,63437.0,63436.0,0.01103879]
[1726940028658,0.573909,63437.0,63436.0,0.00150315]
[1726940028886,0.573909,63437.0,63436.0,0.04257704]
[1726940029105,0.572909,63437.0,63436.0,0.0330414]
[1726940029310,0.572909,63437.0,63436.0,0.04257704]
[1726940030791,0.573909,63437.0,63436.0,0.04257704]
[1726940031444,0.572909,63437.0,63436.0,0.04257704]
[1726940031647,0.572909,63437.0,63436.0,0.04357704]
[1726940032065,0.572909,63437.0,63436.0,0.04257704]
[1726940032301,0.572909,63437.0,63436.0,0.04357704]
[1726940034548,0.573735,63437.0,63436.0,0.04257704]
[1726940034766,0.889008,63437.0,63436.0,0.04357704]
[1726940034978,0.573735,63437.0,63436.0,0.00250315]
[1726940035195,0.573735,63437.0,63436.0,0.00150315]
[1726940035410,0.573735,63437.0,63436.0,0.00250315]
[1726940035631,0.574735,63437.0,63436.0,0.00250315]
[1726940035848,0.574735,63437.0,63436.0,0.001]
[1726940035849,0.890008,63437.0,63436.0,0.001]
[1726940036947,0.788195,63436.0,63435.0,0.00150315]
[1726940037167,0.888195,63436.0,63435.0,0.00150315]
[1726940038762,0.572917,63436.0,63435.0,0.00150315]
[1726940038979,0.573917,63436.0,63435.0,0.00150315]
[1726940040948,0.889195,63436.0,63435.0,0.00150315]
[1726940041167,0.88822,63434.0,63433.0,0.00315515]
[1726940041794,0.88822,63434.0,63433.0,0.00310647]
[1726940042231,0.000826,63437.0,63434.0,0.0987]
[1726940042458,0.315278,63436.0,63434.0,0.0987]
[1726940042669,0.1,63435.0,63434.0,0.0987]
[1726940042889,0.257641,63435.0,63434.0,0.0987]
[1726940043098,0.572924,63435.0,63434.0,0.1082432]
[1726940043329,0.572924,63435.0,63434.0,0.0095432]
[1726940043553,0.572924,63435.0,63433.0,0.00310647]
[1726940043554,0.257644,63434.0,63433.0,0.00310647]
[1726940043777,0.257644,63434.0,63433.0,0.01345232]
[1726940044304,0.573932,63434.0,63433.0,0.01345232]
[1726940044939,0.88922,63434.0,63433.0,0.01345232]
[1726940045392,0.88922,63434.0,63433.0,0.00160332]
[1726940047120,1.204508,63434.0,63433.0,0.00160332]
[1726940047353,0.88922,63434.0,63433.0,0.00160332]
[1726940047796,0.88922,63434.0,63433.0,0.00310647]